Cogmind - Beta 15 @@@ ROGUE MODE // 2025.09.20 @ 05:34:34 Player: shapeshifter Result: Destroyed by G-73 Enforcer with Heavy Laser Performance ------------- Evolutions (8) 4000 Regions Visited (21) 4200 Robots Destroyed (190) 950 Value Destroyed (7080) 7080 Prototype IDs (243) 4860 Alien Tech Used (5) 1000 Bonus (11194) 11194 TOTAL SCORE: 33284 Bonus ------- High Alert Combat Kills 579 Follower Combat Kills 2198 Network Hubs Disabled 400 Aligned with FarCom 300 Met Data Miner 300 Used Data Conduit 3000 Built Enhanced Grunts 300 A7 Reached Mainframe 300 Met R17 at Cetus 500 Used Core Reset Matrix 3000 Hacked Protovariant 500 Friendly Fire -183 Cogmind --------- Core Integrity 0/1450 Matter 213/300 Energy 99/100 System Corruption 5% Temperature Cool (0) Movement Core (50) Location -2/Testing Parts ------- > --- POWER (2) -------- (None) > --- PROPULSION (8) --- (None) > --- UTILITY (10) ----- Spectral Analyzer > --- WEAPON (3) ------- Nanosword > --- INVENTORY (5) ---- Dimensional Node Initializer Peak State ------------ > --- POWER ------------ Light Particle Reactor Micro Antimatter Reactor > --- PROPULSION ------- Cooled Field Propulsion Drive Q-thruster Q-thruster Q-thruster Q-thruster Impulse Thruster Array Experimental Q-thruster > --- UTILITY ---------- Medium Storage Unit Spectral Analyzer Advanced Signal Interpreter ECM Suite Improved Reaction Control System Cloaking Device Improved Focal Shield Experimental Thermal Shield Advanced Hacking Suite System Mapper > --- WEAPON ----------- Core Stripper Nanosword > --- INVENTORY -------- Nuclear Pulse Thruster Biomechanical Wings Dimensional Node Initializer Transdimensional Reconstructor High-powered Transdimensional Reconstructor High-powered Transdimensional Reconstructor High-powered Transdimensional Reconstructor Sigix Terminator [Rating: 185] Favorites ----------- Power Light Angular Momentum Engine Engine Light Angular Momentum Engine Power Core Micro Nuclear Core Reactor Antimatter Reactor Propulsion Medium Treads Treads Medium Treads Wheel Wheel Hover Unit Aerolev Unit Flight Unit Nuclear Pulse Thruster Utility High-capacity Storage Unit Device Experimental Thermal Shield Storage High-capacity Storage Unit Processor Core Analyzer Hackware System Mapper Protection Medium Reactive Plating Weapon Advanced KE Penetrator Energy Gun EM Pulse Gun Energy Cannon Null Cannon Ballistic Gun Advanced KE Penetrator Ballistic Cannon AWS/Autocannon Launcher Rocket Launcher Impact Weapon Core Stripper Slashing Weapon Greatsword Piercing Weapon Force Lance Build | -11 -10 -10 -10 -9 -8 -7 -7 -7 -7 -6 -6 -5 -5 -5 -5 -5 -4 -3 -3 -2 -2 ------- Run | Yrd Mat Min Exi Min Mat Fac Low Low Dat Pro Fac Fac Ext Cet Arc Hub Fac Res Qua Res Tes Slots Evolved 16 | . . . . . 4 2 . . . . 2 2 . . . . 2 2 . 2 . Power 1 | . . . . . . . . . . . . . . . . . . 1 . . . Propulsion 6 | . . . . . 1 1 . . . . . . . . . . 2 1 . 1 . Utility 8 | . . . . . 2 1 . . . . 2 2 . . . . . . . 1 . Weapon 1 | . . . . . 1 . . . . . . . . . . . . . . . . Parts Attached 132 | 6 9 1 2 . 14 14 . 4 8 . 2 4 7 11 8 . 2 12 14 12 2 Power 14 | 1 1 . . . 2 2 . . 3 . . . . . . . . 2 1 2 . Engine 7 | 1 1 . . . 2 2 . . 1 . . . . . . . . . . . . Core 1 | . . . . . . . . . 1 . . . . . . . . . . . . Reactor 6 | . . . . . . . . . 1 . . . . . . . . 2 1 2 . Propulsion 34 | 2 3 . . . 4 4 . . 3 . . . 4 3 . . . 4 5 2 . Treads 17 | 2 1 . . . 3 4 . . . . . . 4 3 . . . . . . . Leg . | . . . . . . . . . . . . . . . . . . . . . . Wheel 2 | . 2 . . . . . . . . . . . . . . . . . . . . Hover 1 | . . . . . 1 . . . . . . . . . . . . . . . . Flight 14 | . . . . . . . . . 3 . . . . . . . . 4 5 2 . Utility 55 | 1 3 1 . . 5 4 . 2 2 . 2 4 3 1 8 . 2 5 6 6 . Device 24 | . 1 1 . . 3 1 . 1 1 . . 2 2 . 2 . . 3 5 2 . Storage 6 | 1 2 . . . . . . . . . . . . . . . . 1 1 1 . Processor 7 | . . . . . 1 2 . 1 . . . . . . . . . 1 . 2 . Hackware 9 | . . . . . . . . . . . 2 1 . . 6 . . . . . . Protection 9 | . . . . . 1 1 . . 1 . . 1 1 1 . . 2 . . 1 . Artifact . | . . . . . . . . . . . . . . . . . . . . . . Weapon 29 | 2 2 . 2 . 3 4 . 2 . . . . . 7 . . . 1 2 2 2 Energy Gun 2 | 1 . . . . . . . . . . . . . 1 . . . . . . . Energy Cannon 1 | . . . . . . . . . . . . . . . . . . . . . 1 Ballistic Gun 7 | 1 2 . . . . . . . . . . . . 4 . . . . . . . Ballistic Cannon 5 | . . . 2 . 2 . . 1 . . . . . . . . . . . . . Launcher 5 | . . . . . 1 1 . . . . . . . 2 . . . . . 1 . Special Weapon . | . . . . . . . . . . . . . . . . . . . . . . Impact Weapon 1 | . . . . . . . . . . . . . . . . . . . 1 . . Slashing Weapon 5 | . . . . . . 3 . 1 . . . . . . . . . . 1 . . Piercing Weapon 3 | . . . . . . . . . . . . . . . . . . 1 . 1 1 Special Melee Weapon . | . . . . . . . . . . . . . . . . . . . . . . Unidentified Prototypes 10 | . . 1 . . 1 2 . . . . 2 . . . . . . . 1 1 2 Corrupted Parts 8 | . . . . . . . . . . . . . . 8 . . . . . . . System Corruption 40 | . . . . . . . . . . . . . . 40 . . . . . . . Parts Lost 42 | . 4 . . . 5 2 . 3 2 . . 1 1 . . . 1 2 1 15 5 Power 6 | . 1 . . . 1 . . . 1 . . . . . . . . 1 . 2 . Propulsion 12 | . 2 . . . . . . . . . . 1 . . . . . 1 . 7 1 Utility 17 | . . . . . 1 2 . 1 1 . . . 1 . . . 1 . 1 5 4 Weapon 7 | . 1 . . . 3 . . 2 . . . . . . . . . . . 1 . Highest Loss Streak 14 | . 2 . . . 2 2 . 2 2 . . 1 1 . . . 1 1 1 14 4 To Critical Strikes 1 | . . . . . . . . . . . . . . . . . 1 . . . . Average Backups 12 | 4 9 14 16 13 12 12 12 11 9 13 11 12 13 12 13 17 15 8 8 7 4 Power . | . . . 1 . . . 1 1 . 1 1 1 1 . . 1 1 . . . . Propulsion 3 | 1 1 1 1 1 3 4 4 3 2 3 3 3 3 5 6 6 6 2 2 . . Utility 5 | 1 4 8 9 8 6 4 4 4 5 7 5 5 5 4 4 8 6 2 2 . . Weapon 2 | . 2 5 3 3 1 1 2 1 1 1 1 1 3 2 2 2 2 2 1 . . Tool/Special . | . . . . . . . . . . . . . . . . . . . . . . Unused Backups 45 | . 3 . 7 1 6 5 1 3 3 . . . 7 3 . . . 4 1 . 1 Power 5 | . . . 3 . . 1 . . . . . . . . . . . 1 . . . Propulsion 13 | . 1 . . . 3 1 . 3 1 . . . 2 . . . . 2 . . . Utility 21 | . 1 . 4 . 3 3 1 . 2 . . . 4 2 . . . . 1 . . Weapon 4 | . 1 . . 1 . . . . . . . . . 1 . . . 1 . . . Tool/Special 2 | . . . . . . . . . . . . . 1 . . . . . . . 1 Average Slot Usage (%) 84 | . 96 100 100 100 88 91 92 84 76 84 84 87 85 76 81 58 63 74 85 70 23 Engine 5 | . 13 14 14 14 8 7 7 7 4 7 6 5 5 . . . . . . . . Reactor 1 | . . . . . . . . . . . . . . 4 5 5 5 4 7 5 . Treads 19 | . 21 . . . 25 29 30 30 19 30 26 22 21 10 11 11 10 . . . . Wheel 2 | . 3 28 28 28 1 . . . . . . . . . . . . . . . . Flight 2 | . . . . . . . . . 7 . . . . . . . . 23 29 21 4 Device 12 | . 14 14 14 14 9 9 7 6 7 5 6 15 16 23 17 5 9 21 22 14 . Storage 7 | . 14 14 14 14 9 7 7 7 5 7 6 5 5 5 5 5 5 3 4 2 . Processor 7 | . . . . . 8 10 23 22 23 16 13 6 5 5 3 . . 1 4 7 6 Hackware 6 | . . . . . . . . . . . 11 16 15 11 16 11 10 9 9 8 4 Protection 3 | . . . . . 8 6 . . 1 7 6 5 6 5 1 . 6 1 . . 2 Ballistic Gun 4 | . 26 28 20 . . . . . . . . . . 2 17 17 15 2 . . . Ballistic Cannon 4 | . . . 7 28 13 . . . 1 7 6 4 5 . . . . . . . . Launcher 1 | . . . . . 3 6 7 1 . . . . . 2 . . . . . . . Slashing Weapon 1 | . . . . . . 9 7 7 3 . . . . . . . . . 1 4 4 Peak Build Rating 185 | 6 8 15 17 18 42 65 68 78 83 86 104 121 115 142 150 150 151 141 175 185 67 Average Rating 80 | 5 7 8 11 17 38 56 67 59 57 85 102 118 109 118 132 149 145 110 141 137 43 On Entrance 77 | . 6 8 9 17 18 39 64 68 60 83 86 104 113 103 137 150 150 141 119 171 54 Naked Turns . | . . . . . . . . . . . . . . . . . . . . . . Heaviest Build 154 | 13 46 46 50 50 61 87 76 76 129 143 143 147 141 133 154 154 154 104 53 53 5 Greatest Support 160 | 40 40 20 20 20 84 112 112 112 112 112 112 112 107 160 160 160 160 160 55 61 6 Greatest Overweight (x) 7 | . 7 2 2 2 2 . . . 2 1 1 2 2 1 . . . . . . . Average Overweight (x) . | . . 2 2 2 . . . . . 1 1 . 1 . . . . . . . . Largest Inventory Capacity 20 | 8 20 20 20 20 20 20 20 20 20 20 20 20 20 20 20 20 20 20 20 10 5 Average Capacity 18 | 7 12 20 20 20 20 20 20 20 16 20 20 20 20 20 20 20 20 9 10 8 5 Most Carried 20 | 7 16 15 20 20 20 20 20 20 20 20 19 20 20 20 20 19 20 16 10 10 5 Average Carried 17 | 4 9 14 18 20 19 19 19 18 13 19 17 18 19 19 18 18 17 8 8 8 4 Final Capacity 20 | 8 20 20 20 20 20 20 20 20 20 20 20 20 20 20 20 20 20 10 10 5 5 Final Carried 20 | 7 14 15 20 20 20 20 20 19 20 19 18 20 20 19 19 19 20 8 10 5 1 Class Distribution -------------------- 28% | Mutant 16% | Hacker-Tank 15% | Scavenger-Tank 13% | Gladiator 4% | Gunner 4% | Hacker-Sprinter 4% | Scavenger-Mutant 3% | Hacker-Gunner Dominant Class ---------------- Mutant | -10/Materials Mutant | -10/Mines Mutant | -10/Exiles Mutant | -9/Mines Mutant | -8/Materials Mutant | -7/Factory Gladiator | -7/Lower Caves Gladiator | -7/Lower Caves Mutant | -7/Data Miner Gunner | -6/Proximity Caves Hacker-Gunner | -6/Factory Hacker-Tank | -5/Factory Hacker-Tank | -5/Extension Scavenger-Mutant | -5/Cetus Scavenger-Tank | -5/Archives Scavenger-Tank | -5/Hub_04(d) Scavenger-Tank | -4/Factory Scavenger-Sprinter | -3/Research Hacker-Sprinter | -3/Quarantine Hacker-Sprinter | -2/Research Mutant | -2/Testing Resources | -11 -10 -10 -10 -9 -8 -7 -7 -7 -7 -6 -6 -5 -5 -5 -5 -5 -4 -3 -3 -2 -2 ----------- Run | Yrd Mat Min Exi Min Mat Fac Low Low Dat Pro Fac Fac Ext Cet Arc Hub Fac Res Qua Res Tes Matter Collected 5042 | 273 377 70 849 . 905 320 172 66 182 20 10 . 253 135 354 88 202 346 47 358 15 Remotely . | . . . . . . . . . . . . . . . . . . . . . . Salvage Created 6056 | 137 720 . . . 1013 389 25 319 269 2 249 87 967 239 211 87 468 386 16 472 . Parts 331 | 12 45 . . . 56 22 1 26 9 4 15 2 45 9 20 4 27 14 . 20 . Haulers Intercepted 8 | . 1 . . . 2 . . . . . . . . . . . . 2 . 3 . Recyclers Shooed 2 | . 1 . . . . 1 . . . . . . . . . . . . . . . Parts Field Recycled . | . . . . . . . . . . . . . . . . . . . . . . Retrieved Matter . | . . . . . . . . . . . . . . . . . . . . . . Parts Self-Destructed 20 | . . . . . . . 1 15 . 4 . . . . . . . . . . . Prevented . | . . . . . . . . . . . . . . . . . . . . . . Kills | -11 -10 -10 -10 -9 -8 -7 -7 -7 -7 -6 -6 -5 -5 -5 -5 -5 -4 -3 -3 -2 -2 ------- Run | Yrd Mat Min Exi Min Mat Fac Low Low Dat Pro Fac Fac Ext Cet Arc Hub Fac Res Qua Res Tes Combat Hostiles Destroyed 125 | . 18 . . . 25 5 1 9 4 2 6 2 20 3 . 1 9 2 . 18 . Melee 16 | . . . . . . 3 . 8 . . . . . . . . . 2 . 3 . Guns 27 | . 18 . . . . . . . . . . . . . . 1 8 . . . . Cannons 59 | . . . . . 24 . . 1 4 2 6 2 20 . . . . . . . . AOE 20 | . . . . . 1 2 1 . . . . . . . . . 1 . . 15 . Classes Destroyed 19 | 3 3 . . . 7 1 . 1 . 1 1 . 1 . . . . . . 1 . Worker 14 | 1 1 . . . 3 2 . . . . . . 1 . . . 4 . . 2 . Builder 11 | . . . . . 4 1 . . . . . . 2 . . . 1 . . 3 . Tunneler 4 | 3 . . . . . . . . . . . . . . . . . . . 1 . Hauler 8 | . 1 . . . 2 . . . . . . . . . . . . 2 . 3 . Recycler 9 | 1 1 . . . 1 2 . . . . . . 1 . . . . 1 . 2 . Mechanic 1 | . . . . . 1 . . . . . . . . . . . . . . . . Operator 9 | . . . . . . . . . . . 1 . 2 . 6 . . . . . . Drone 4 | . . . . . . . . . . 2 . . . . . . . . 2 . . Watcher 6 | . . . . . 1 1 . . . . . 1 3 . . . . . . . . Swarmer 35 | . 7 . . . 3 . . 3 . . 2 . 9 . . . 5 2 . 4 . Cutter 3 | . . . . . . . . . . . . . . . . . . . . 3 . Grunt 41 | . 11 . . . 15 . . 1 . . 3 1 2 . . . 1 . . 7 . Brawler 1 | . . . . . 1 . . . . . . . . . . . . . . . . Duelist 1 | . . . . . 1 . . . . . . . . . . . . . . . . Sentry 18 | . . . . . 4 4 . 1 . . . . 7 . . 1 . . . 1 . Hunter 9 | . . . . . 1 . 1 1 . . 1 . . . . . 3 . . 2 . Programmer 4 | . . . . . . 1 . 1 . . . 1 . . . . . . . 1 . Behemoth 2 | . . . . . . . . . . . . . 2 . . . . . . . . Cetus Guard 3 | . . . . . . . . . . . . . . 3 . . . . . . . Enhanced Grunt 4 | . . . . . . . . . 4 . . . . . . . . . . . . Master Thief 2 | . . . . . . . . 2 . . . . . . . . . . . . . Thug 1 | . . . . . . . . . . . . . . . . . 1 . . . . Savage 1 | . . . . . . . . . . . . . 1 . . . . . . . . Best Kill Streak 24 | 4 4 . . . 9 5 1 3 5 2 3 1 8 2 4 1 7 2 . 24 . Combat Bots Only 15 | . 3 . . . 8 1 1 3 4 2 3 1 8 2 . 1 5 2 . 15 . Max Kills in Single Turn 24 | 2 1 . . . 2 2 1 1 1 1 1 1 1 1 1 1 6 1 1 24 . Gunslinging 1 | . . . . . . . . . . . . . . . . . 1 . . . . Exploded 15 | . . . . . 1 1 1 . . . . . . . . . 1 . . 15 . Melee 1 | . . . . . . 1 . 1 . . . . . . . . . 1 . 1 . Uniques/NPCs Destroyed 1 | . . . . . . . . . 1 . . . . . . . . . . . . Data Miner (-7/Data Miner) Combat | -11 -10 -10 -10 -9 -8 -7 -7 -7 -7 -6 -6 -5 -5 -5 -5 -5 -4 -3 -3 -2 -2 -------- Run | Yrd Mat Min Exi Min Mat Fac Low Low Dat Pro Fac Fac Ext Cet Arc Hub Fac Res Qua Res Tes Hostile Shots Fired 933 | . 103 . . 4 120 221 2 71 10 . 4 3 58 15 . 7 87 40 37 98 53 Missed 347 | . 27 . . 2 30 91 . 18 6 . 2 2 19 5 . 3 20 21 28 49 24 Hits 586 | . 76 . . 2 90 130 2 53 4 . 2 1 39 10 . 4 67 19 9 49 29 Melee 18 | . . . . . 1 . . 3 . . . . . . . . . . . 14 . Projectile 568 | . 76 . . 2 89 130 2 50 4 . 2 1 39 10 . 4 67 19 9 35 29 AOE 1 | . . . . . . . . . . . . . . . . . . . . 1 . Critical Strikes 27 | . 5 . . . 2 . . 2 . . . . 1 . . . 2 2 . 9 4 Actively Blocked 1 | . . . . . 1 . . . . . . . . . . . . . . . . Part Disruptions 1 | . . . . . . 1 . . . . . . . . . . . . . . . Damage Taken 9029 | . 824 . . 14 1091 805 32 534 181 . 30 20 530 182 . 430 802 306 311 2185 752 Core 2144 | . 172 . . . 132 77 . 21 9 . . . 9 . . 87 51 119 38 992 437 Absorbed by Shields 608 | . . . . . 315 240 . . . . . . . 53 . . . . . . . Redirected to Shielding 29 | . . . . . 28 1 . . . . . . . . . . . . . . . Ignored by Resistances 773 | . . . . . . . . . . . 6 . 220 91 . . 266 118 54 18 . Core Remaining (%) 82 | 100 . . . 31 76 . . . . 84 100 . . . . 90 95 . 87 . . Volleys Fired 252 | 13 79 . . . 80 20 2 . . . . . . 2 13 2 32 . 8 1 . Largest 3 | 2 2 . . . 3 1 1 . . . . . . 2 3 3 3 . 1 1 . Hottest 105 | 60 60 . . . 97 36 36 . . . . . . 80 105 105 105 . 80 . . Shots Fired 612 | 26 157 . . . 167 20 2 2 16 5 10 11 62 5 38 6 76 . 8 1 . Gun 312 | 26 157 . . . . . . . . . . . . 1 38 6 76 . 8 . . Cannon 265 | . . . . . 159 . . 2 16 5 10 11 62 . . . . . . . . Launcher 35 | . . . . . 8 20 2 . . . . . . 4 . . . . . 1 . Special . | . . . . . . . . . . . . . . . . . . . . . . Kinetic 560 | 13 156 . . . 159 . . 2 16 5 10 11 62 1 38 6 76 . 5 . . Thermal 4 | . . . . . . . . . . . . . . . . . . . 3 1 . Explosive 30 | . . . . . 8 20 2 . . . . . . . . . . . . . . Electromagnetic 18 | 13 1 . . . . . . . . . . . . 4 . . . . . . . Robot Hit Streak 23 | 2 12 . . . 6 4 1 3 13 3 10 18 23 15 6 2 5 . . . . Robot Miss Streak 6 | 3 4 . . . 6 1 1 . 1 1 . 1 1 1 6 2 4 . . . . Penetration Max . | . . . . . . . . . . . . . . . . . . . . . . Secondary Targets 5 | . 2 . . . . . . . . . . . . . . . 3 . . . . Max Gunslinging Chain 1 | . 1 . . . . . . . . . . . . . . . 1 . . . . Autonomous 106 | . . . . . . . . 2 16 5 10 11 62 . . . . . . . . Shots Hit Robots 422 | 12 107 . . . 90 19 1 18 16 3 10 10 56 4 17 3 35 7 3 9 2 Core Hits 247 | 8 45 . . . 63 22 3 9 9 2 6 1 24 2 10 2 18 3 1 19 . Critical Kills 2 | . . . . . . . . . . . . . . . 1 . 1 . . . . Critical Parts Destroyed 6 | . 1 . . . . . . . . . . . . . 1 . 4 . . . . Critical Strikes 33 | . 1 . . . 6 3 . 2 2 . 2 2 5 . 2 . 5 1 1 . 1 Destroy 8 | . 1 . . . . . . . . . . . . . 2 . 5 . . . . Blast 17 | . . . . . 6 . . . 2 . 2 2 5 . . . . . . . . Sever 6 | . . . . . . 3 . 2 . . . . . . . . . . . . 1 Impale 2 | . . . . . . . . . . . . . . . . . . 1 1 . . Melee Attacks 93 | . . . . . . 14 . 21 1 . . 4 . . . . . 17 15 17 4 Impact . | . . . . . . . . . . . . . . . . . . . . . . Slashing 67 | . . . . . . 14 . 21 1 . . 4 . . . . . . 6 17 4 Piercing 26 | . . . . . . . . . . . . . . . . . . 17 9 . . Sneak Attacks 16 | . . . . . . 2 . 1 1 . . . . . . . . 3 3 5 1 Combat Hostiles 3 | . . . . . . . . 1 . . . . . . . . . . . 2 . Follow-up Attacks . | . . . . . . . . . . . . . . . . . . . . . . Damage Inflicted 40960 | 193 899 . . . 2663 1263 68 1121 1506 304 879 999 5124 568 595 106 1596 678 202 22037 159 Guns 2737 | 132 899 . . . . . . . . . . . . . 595 106 1005 . . . . Cannons 10976 | . . . . . 2116 . . 172 1382 304 879 999 5124 . . . . . . . . Explosions 23686 | 61 . . . . 547 634 68 . . . . . . 568 . . 591 . . 21217 . Melee 3561 | . . . . . . 629 . 949 124 . . . . . . . . 678 202 820 159 Ramming . | . . . . . . . . . . . . . . . . . . . . . . Kinetic 13623 | 42 899 . . . 2116 . . 172 1382 304 879 999 5124 . 595 106 1005 . . . . Thermal 21826 | 61 . . . . . . . . . . . . . . . . 591 . . 21174 . Explosive 1249 | . . . . . 547 634 68 . . . . . . . . . . . . . . Electromagnetic 701 | 90 . . . . . . . . . . . . . 568 . . . . . 43 . Impact . | . . . . . . . . . . . . . . . . . . . . . . Slashing 2681 | . . . . . . 629 . 949 124 . . . . . . . . . . 820 159 Piercing 880 | . . . . . . . . . . . . . . . . . . 678 202 . . Highest Corruption 42 | . . . . . . . . 1 1 1 . . 2 42 42 38 . . 1 3 5 Average Corruption 9 | . . . . . . . . 1 1 1 . . 2 10 38 36 . . 1 2 3 Corruption Purged 6 | . . . . . . . . . . . . . . . 6 . . . . . . Corruption Blocked . | . . . . . . . . . . . . . . . . . . . . . . Effects 117 | . . . . . . . . 6 3 2 . . 28 13 32 23 . . 1 4 5 Message Errors 28 | . . . . . . . . 2 . . . . 7 3 8 7 . . . . 1 Matter Fused 29 | . . . . . . . . 2 1 1 . . 6 3 7 5 . . . 2 2 Heat Flow Errors 10 | . . . . . . . . 1 . . . . 3 2 2 2 . . . . . Energy Discharges 17 | . . . . . . . . . 1 . . . 5 2 3 4 . . . 1 1 Parts Rejected 1 | . . . . . . . . . . . . . . . . 1 . . . . . Data Loss (minor) 17 | . . . . . . . . 1 . 1 . . 4 2 6 1 . . . 1 1 Data Loss (major) 6 | . . . . . . . . . 1 . . . 2 1 . 1 . . 1 . . Misfires 2 | . . . . . . . . . . . . . . . 1 1 . . . . . Alerts 2 | . . . . . . . . . . . . . 1 . 1 . . . . . . Misdirections 2 | . . . . . . . . . . . . . . . 2 . . . . . . Weapon Failures 3 | . . . . . . . . . . . . . . . 2 1 . . . . . Overload Shots . | . . . . . . . . . . . . . . . . . . . . . . Overflow Damage 4059 | . . . . . 25 95 . 78 18 78 230 275 815 28 . . 73 87 50 2207 . Projectiles 1440 | . . . . . 14 . . 10 18 78 230 275 815 . . . . . . . . Explosions 2335 | . . . . . 11 16 . . . . . . . 28 . . 73 . . 2207 . Melee 284 | . . . . . . 79 . 68 . . . . . . . . . 87 50 . . Knockbacks 49 | . . . . . 20 . . . 11 1 2 6 9 . . . . . . . . Impact . | . . . . . . . . . . . . . . . . . . . . . . Kinetic 44 | . . . . . 18 . . . 10 1 2 6 7 . . . . . . . . Secondary 5 | . . . . . 2 . . . 1 . . . 2 . . . . . . . . Self-Inflicted Damage 1036 | . . . . . 39 87 . . . . . . . . . . . . . 910 . Shots 4 | . . . . . 1 2 . . . . . . . . . . . . . 1 . Rammed . | . . . . . . . . . . . . . . . . . . . . . . Targets Rammed . | . . . . . . . . . . . . . . . . . . . . . . Kicked . | . . . . . . . . . . . . . . . . . . . . . . Crushed . | . . . . . . . . . . . . . . . . . . . . . . Highest Temperature 308 | 40 36 . . . 267 9 . 159 . . . . 238 243 272 240 219 . . 308 . Average Temperature 73 | 22 14 . . . 63 6 . 84 . . . . 98 112 119 83 79 . . 97 . Received Heat Transfer 1367 | . 378 . . . 448 168 . 90 . . 9 . 90 31 . 18 . 48 33 27 27 Effects 3 | . . . . . 2 . . . . . . . . . . . . . . 1 . Interference 3 | . . . . . 2 . . . . . . . . . . . . . . 1 . Siege Activations . | . . . . . . . . . . . . . . . . . . . . . . Martial Activations . | . . . . . . . . . . . . . . . . . . . . . . Shielding Activations . | . . . . . . . . . . . . . . . . . . . . . . Robots Disrupted . | . . . . . . . . . . . . . . . . . . . . . . Combat Hostiles . | . . . . . . . . . . . . . . . . . . . . . . Robots Corrupted 4 | . . . . . . . . . . . . . 1 3 . . . . . . . Combat Hostiles 3 | . . . . . . . . . . . . . . 3 . . . . . . . Parts Fried 3 | . . . . . . . . . . . . . . 3 . . . . . . . Impact Corruptions 1 | . . . . . . . . . . . . . 1 . . . . . . . . Robots Melted . | . . . . . . . . . . . . . . . . . . . . . . Combat Hostiles . | . . . . . . . . . . . . . . . . . . . . . . Parts Melted 2 | 1 . . . . . . . . . . . . 1 . . . . . . . . Heat Transferred 550 | 100 . . . . . . . . . . . . . . . . 450 . . . . Parts Sabotaged . | . . . . . . . . . . . . . . . . . . . . . . Parts Stolen 3 | . . . . . . . . 3 . . . . . . . . . . . . . Parts Stripped . | . . . . . . . . . . . . . . . . . . . . . . Power Chain Reactions 2 | 1 . . . . . . . . . . . . . . . . . . . 1 . Alert | -11 -10 -10 -10 -9 -8 -7 -7 -7 -7 -6 -6 -5 -5 -5 -5 -5 -4 -3 -3 -2 -2 ------- Run | Yrd Mat Min Exi Min Mat Fac Low Low Dat Pro Fac Fac Ext Cet Arc Hub Fac Res Qua Res Tes Maximum Alert Level 4 | . . . . . 2 . . . . . 1 . 1 1 . 3 4 3 2 4 3 Low Security (%) 64 | 100 100 100 . 100 30 100 . . . . . 100 89 77 100 10 . . . 5 . Level 1 21 | . . . . . 59 . . . . . 100 . 10 22 . 8 36 . 47 66 . Level 2 6 | . . . . . 9 . . . . . . . . . . 4 9 91 52 . 75 Level 3 4 | . . . . . . . . . . . . . . . . 76 26 8 . . 24 Level 4 2 | . . . . . . . . . . . . . . . . . 26 . . 28 . Level 5 . | . . . . . . . . . . . . . . . . . . . . . . High Security . | . . . . . . . . . . . . . . . . . . . . . . Max Security . | . . . . . . . . . . . . . . . . . . . . . . Peak Influence 1369 | 10 124 43 . 94 438 154 . . . . 368 144 296 279 182 879 1208 758 459 1369 735 Initial 733 | . . 43 . . 5 140 . . . . 300 144 2 110 38 16 411 615 414 247 733 Average 203 | 2 62 25 . 32 227 56 . . . . 321 32 51 167 114 683 767 652 413 548 623 Influence Increases 8340 | 25 513 . . 104 831 252 30 185 20 10 518 82 1021 341 274 1045 1051 303 166 1498 71 Destroy 0b10 Robot/C 3440 | . 360 . . 80 500 100 20 140 20 . 120 40 600 160 80 360 340 40 . 480 . Destroy 0b10 Robot/NC 350 | 25 15 . . . 60 30 . . . 10 5 5 45 10 35 15 25 15 . 55 . Destroy Leader 622 | . 82 . . 10 116 52 10 30 . . 30 12 56 . . 94 50 4 . 76 . Allied During Kill 1239 | . . . . 14 4 . . . . . . . 246 152 115 469 174 . . 65 . Trap Triggered on 0b10 10 | . . . . . . . . . . . 10 . . . . . . . . . . Successful Hack 208 | . 11 . . . 17 4 . . . . 23 . 3 5 . 7 3 69 43 . 23 Disable Machine 495 | . . . . . 30 . . . . . . . 15 . . 30 255 . 45 105 15 Destroy Structure 1166 | . . . . . 59 66 . . . . . 10 26 14 44 40 204 10 18 672 3 Advance Influence 300 | . . . . . . . . . . . 300 . . . . . . . . . . Partial Spotted 120 | . 15 . . . . . . . . . . . . . . . . 45 . 45 15 Lose Combat Pursuer 390 | . 30 . . . 45 . . 15 . . 30 15 30 . . 30 . 120 60 . 15 Influence Decreases 7816 | 25 401 109 3 90 537 553 37 185 20 10 222 372 829 442 325 250 718 739 464 633 852 Entered New Map 2664 | . . 69 3 . 9 168 4 . . . . 152 4 88 59 30 430 559 324 193 572 Time Decay 3828 | 25 361 40 . 90 458 365 33 185 10 10 222 220 401 294 246 180 198 140 120 170 60 Lost Part 370 | . 40 . . . 50 20 . . 10 . . . 10 . . . 10 20 10 150 50 Lost Ally 674 | . . . . . 20 . . . . . . . 134 60 20 40 80 20 10 120 170 Purge Threat 280 | . . . . . . . . . . . . . 280 . . . . . . . . Squads Dispatched 35 | . 3 . . . 4 4 . . . . 2 . . . . 7 2 3 2 5 3 Investigation 7 | . 2 . . . 1 . . . . . 1 . . . . 1 . 1 . 1 . Extermination 6 | . . . . . . 1 . . . . . . . . . . . 1 1 2 1 Reinforcement 11 | . 1 . . . 1 . . . . . 1 . . . . 2 1 1 1 2 1 Assault 3 | . . . . . . . . . . . . . . . . 1 1 . . . 1 Garrison 8 | . . . . . 2 3 . . . . . . . . . 3 . . . . . Intercept . | . . . . . . . . . . . . . . . . . . . . . . Searches Triggered . | . . . . . . . . . . . . . . . . . . . . . . Construction Impeded 1 | . . . . . . . . . . . . . . . . . 1 . . . . Haulers Reinforced 3 | . . . . . . . . . . . . . . . . . . 1 . 1 1 Active Scanning Responses . | . . . . . . . . . . . . . . . . . . . . . . Cargo Convoy Interrupts . | . . . . . . . . . . . . . . . . . . . . . . Stealth | -11 -10 -10 -10 -9 -8 -7 -7 -7 -7 -6 -6 -5 -5 -5 -5 -5 -4 -3 -3 -2 -2 --------- Run | Yrd Mat Min Exi Min Mat Fac Low Low Dat Pro Fac Fac Ext Cet Arc Hub Fac Res Qua Res Tes Distress Signals 19 | . 1 . . . 5 . . . . . . . . 2 . 3 . 2 . 4 2 Communications Jammed 9 | . . . . . . . . . . . . . . . . . . 9 . . . Distress Signals 9 | . . . . . . . . . . . . . . . . . . 9 . . . Times Spotted 272 | . 26 . . 4 36 9 1 11 4 2 5 4 33 9 11 17 10 17 15 39 19 Peak Tracking Total 18 | . 3 . . 4 6 3 . 3 3 2 2 2 5 5 1 8 6 11 9 18 11 Tactical Retreats 22 | . 2 . . . 2 . . 1 . . 1 1 2 . . 2 . 3 2 5 1 Traps | -11 -10 -10 -10 -9 -8 -7 -7 -7 -7 -6 -6 -5 -5 -5 -5 -5 -4 -3 -3 -2 -2 ------- Run | Yrd Mat Min Exi Min Mat Fac Low Low Dat Pro Fac Fac Ext Cet Arc Hub Fac Res Qua Res Tes Traps Triggered 12 | . 1 . . . 1 . . . . . . 1 8 . . 1 . . . . . Indirectly . | . . . . . . . . . . . . . . . . . . . . . . Trap Hack Attempts . | . . . . . . . . . . . . . . . . . . . . . . Triggered . | . . . . . . . . . . . . . . . . . . . . . . Disarmed 6 | . . . . . . . . . . . . . . . . . . . 6 . . Reprogrammed 2 | . . . . . . . . . . . 2 . . . . . . . . . . Reused 1 | . . . . . . . . . . . 1 . . . . . . . . . . Traps Extracted . | . . . . . . . . . . . . . . . . . . . . . . Installed . | . . . . . . . . . . . . . . . . . . . . . . Triggered 1 | . . . . . . . . . . . 1 . . . . . . . . . . Machines | -11 -10 -10 -10 -9 -8 -7 -7 -7 -7 -6 -6 -5 -5 -5 -5 -5 -4 -3 -3 -2 -2 ---------- Run | Yrd Mat Min Exi Min Mat Fac Low Low Dat Pro Fac Fac Ext Cet Arc Hub Fac Res Qua Res Tes Machines Disabled 34 | . . . . . 2 . . . . . . . 2 . . 2 17 . 3 7 1 Max in Single Turn 8 | . . . . . 1 . . . . . . . 1 . . 1 8 . 1 7 1 Garrison Access 5 | . . . . . 1 . . . . . . 1 . . . . . 2 . . 1 Network Hub 2 | . . . . . . . . . . . . . . . . 2 . . . . . Machines Repaired . | . . . . . . . . . . . . . . . . . . . . . . Machines Dismantled . | . . . . . . . . . . . . . . . . . . . . . . Machines Sabotaged . | . . . . . . . . . . . . . . . . . . . . . . Overloaded Fab Kills . | . . . . . . . . . . . . . . . . . . . . . . Hacking | -11 -10 -10 -10 -9 -8 -7 -7 -7 -7 -6 -6 -5 -5 -5 -5 -5 -4 -3 -3 -2 -2 --------- Run | Yrd Mat Min Exi Min Mat Fac Low Low Dat Pro Fac Fac Ext Cet Arc Hub Fac Res Qua Res Tes Machines Accessed 72 | . 3 1 2 . 9 6 2 . 4 . 2 4 10 1 1 1 1 8 7 4 6 Terminals 47 | . 3 . . . 7 2 . . . . 1 2 9 1 . 1 1 5 7 3 5 Fabricators 5 | . . . . . . 2 . . . . 1 1 . . . . . 1 . . . Repair Stations . | . . . . . . . . . . . . . . . . . . . . . . Recycling Units 2 | . . . . . . 1 . . . . . . 1 . . . . . . . . Scanalyzers 1 | . . . . . 1 . . . . . . . . . . . . . . . . Garrison Access 7 | . . . . . 1 1 . . . . . 1 . . . . . 2 . 1 1 Total Hacks 216 | . 14 1 2 . 28 6 2 . 30 . 20 4 17 2 1 6 3 20 30 10 20 Successful 123 | . 8 1 2 . 13 3 2 . 30 . 12 4 12 1 1 2 2 11 11 2 6 Failed 93 | . 6 . . . 15 3 . . . . 8 . 5 1 . 4 1 9 19 8 14 Catastrophic 11 | . . . . . 2 . . . . . . . 1 . . . . . 4 2 2 Database Lockouts . | . . . . . . . . . . . . . . . . . . . . . . Manual 92 | . 14 . 1 . 23 1 . . . . 10 . 2 1 . 6 3 1 15 7 8 Terminals 149 | . 14 . . . 24 2 . . . . 13 2 16 2 . 6 3 13 30 8 16 Fabricators 12 | . . . . . . 2 . . . . 7 1 . . . . . 2 . . . Repair Stations . | . . . . . . . . . . . . . . . . . . . . . . Recycling Units 2 | . . . . . . 1 . . . . . . 1 . . . . . . . . Scanalyzers 2 | . . . . . 2 . . . . . . . . . . . . . . . . Garrison Access 15 | . . . . . 2 1 . . . . . 1 . . . . . 5 . 2 4 Terminal Hacks 90 | . 2 1 2 . 3 . 2 . 30 . 7 2 11 1 1 2 2 8 10 1 5 Record 16 | . . . 1 . . . . . 11 . . . . . 1 . . 2 1 . . Part Schematic 10 | . . . . . . . . . 9 . . . 1 . . . . . . . . Robot Schematic 7 | . . . . . . . . . 7 . . . . . . . . . . . . Prototype ID Bank 4 | . . . . . . . . . 3 . . . 1 . . . . . . . . Open Door 14 | . . 1 . . . . 2 . . . . 1 7 1 . . . 1 1 . . Open DSF 1 | . . . . . . . . . . . . 1 . . . . . . . . . Level Access Points 4 | . . . . . . . . . . . 1 . . . . 1 . 1 1 . . Branch Access Points 4 | . . . . . . . . . . . 1 . . . . . . 1 1 1 . Emergency Access Points 3 | . . . . . . . . . . . 1 . . . . . 1 . 1 . . Machine Index 1 | . . . . . . . . . . . . . . . . . . . . . 1 Unreport Threat 2 | . . . . . . . . . . . . . 2 . . . . . . . . Locate Traps 1 | . . . . . . . . . . . . . . . . . . . 1 . . Disarm Traps 1 | . . . . . . . . . . . . . . . . . . . 1 . . Reprogram Traps 1 | . . . . . . . . . . . 1 . . . . . . . . . . Dispatch Records 1 | . . . . . . . . . . . 1 . . . . . . . . . . Security Status 1 | . . . . . . . . . . . 1 . . . . . . . . . . Recall Extermination 1 | . . . . . . . . . . . . . . . . . . . 1 . . Hauler Manifests 1 | . . . . . . . . . . . . . . . . . . 1 . . . Registered Components 4 | . 1 . . . . . . . . . . . . . . . . 1 1 . 1 Registered Prototypes 1 | . . . . . . . . . . . . . . . . . . 1 . . . Zone Layout 10 | . 1 . . . 3 . . . . . 1 . . . . 1 1 . 1 . 2 Proto ID Catalog 1 | . . . 1 . . . . . . . . . . . . . . . . . . Protovariant Controls 1 | . . . . . . . . . . . . . . . . . . . . . 1 Fabricator Hacks 7 | . . . . . . 2 . . . . 3 1 . . . . . 1 . . . Network Status 3 | . . . . . . 1 . . . . . 1 . . . . . 1 . . . Load Schematic 2 | . . . . . . . . . . . 2 . . . . . . . . . . Build 2 | . . . . . . 1 . . . . 1 . . . . . . . . . . Repair Station Hacks . | . . . . . . . . . . . . . . . . . . . . . . Recycling Unit Hacks 2 | . . . . . . 1 . . . . . . 1 . . . . . . . . Retrieve Components 2 | . . . . . . 1 . . . . . . 1 . . . . . . . . Scanalyzer 2 | . . . . . 2 . . . . . . . . . . . . . . . . Insert Component 2 | . . . . . 2 . . . . . . . . . . . . . . . . Garrison Access Hacks 5 | . . . . . 1 . . . . . . 1 . . . . . 2 . . 1 Seal Access 5 | . . . . . 1 . . . . . . 1 . . . . . 2 . . 1 Unauthorized Hacks 17 | . 6 . . . 7 . . . . . 2 . . . . . . . 1 1 . Terminals 17 | . 6 . . . 7 . . . . . 2 . . . . . . . 1 1 . Assimilate 2 | . . . . . . . . . . . . . . . . . . . 1 1 . Botnet 5 | . 3 . . . 1 . . . . . 1 . . . . . . . . . . Skim 10 | . 3 . . . 6 . . . . . 1 . . . . . . . . . . Fabricators . | . . . . . . . . . . . . . . . . . . . . . . Repair Stations . | . . . . . . . . . . . . . . . . . . . . . . Recycling Units . | . . . . . . . . . . . . . . . . . . . . . . Scanalyzers . | . . . . . . . . . . . . . . . . . . . . . . Garrison Access . | . . . . . . . . . . . . . . . . . . . . . . Data Cores Recovered 2 | . . . . . . . . . . . 1 . 1 . . . . . . . . Used . | . . . . . . . . . . . . . . . . . . . . . . Hacking Detections 45 | . 3 . . . 8 5 . . . . 2 . 4 1 . 1 1 4 6 4 6 Full Trace Events 3 | . 1 . . . . . . . . . 1 . . . . . . . . 1 . Feedback Events . | . . . . . . . . . . . . . . . . . . . . . . Feedback Blocked . | . . . . . . . . . . . . . . . . . . . . . . Robot Schematics Acquired 7 | . . . . . . . . . 7 . . . . . . . . . . . . Robots Built . | . . . . . . . . . . . . . . . . . . . . . . Authchips . | . . . . . . . . . . . . . . . . . . . . . . Time . | . . . . . . . . . . . . . . . . . . . . . . Total Robot Build Rating . | . . . . . . . . . . . . . . . . . . . . . . Part Schematics Acquired 10 | . . . . . . . . . 9 . . . 1 . . . . . . . . Parts Built 3 | . . . . . . 2 . . . . 1 . . . . . . . . . . Authchips . | . . . . . . . . . . . . . . . . . . . . . . Time 137 | . . . . . . 84 . . . . 53 . . . . . . . . . . Total Part Build Rating 14 | . . . . . . 8 . . . . 6 . . . . . . . . . . Parts Repaired . | . . . . . . . . . . . . . . . . . . . . . . Time . | . . . . . . . . . . . . . . . . . . . . . . Parts Recycled . | . . . . . . . . . . . . . . . . . . . . . . Recycled Matter . | . . . . . . . . . . . . . . . . . . . . . . Retrieved Matter . | . . . . . . . . . . . . . . . . . . . . . . Retrieved Components 12 | . . . . . . 3 . . . . . . 9 . . . . . . . . Parts Scanalyzed . | . . . . . . . . . . . . . . . . . . . . . . Part Schematics Acquired . | . . . . . . . . . . . . . . . . . . . . . . Parts Damaged . | . . . . . . . . . . . . . . . . . . . . . . Bothacking | -11 -10 -10 -10 -9 -8 -7 -7 -7 -7 -6 -6 -5 -5 -5 -5 -5 -4 -3 -3 -2 -2 ------------ Run | Yrd Mat Min Exi Min Mat Fac Low Low Dat Pro Fac Fac Ext Cet Arc Hub Fac Res Qua Res Tes Used RIF Installer . | . . . . . . . . . . . . . . . . . . . . . . Robots Hacked . | . . . . . . . . . . . . . . . . . . . . . . Non-combat . | . . . . . . . . . . . . . . . . . . . . . . Combat . | . . . . . . . . . . . . . . . . . . . . . . Robot Hacks Applied . | . . . . . . . . . . . . . . . . . . . . . . Relay Couplers Released . | . . . . . . . . . . . . . . . . . . . . . . Fabnet Peak Effective % . | . . . . . . . . . . . . . . . . . . . . . . Robots Rewired 7 | . . . . . . . . . . . . . 7 . . . . . . . . Allies Hacked . | . . . . . . . . . . . . . . . . . . . . . . Hacks Repelled . | . . . . . . . . . . . . . . . . . . . . . . Allies | -11 -10 -10 -10 -9 -8 -7 -7 -7 -7 -6 -6 -5 -5 -5 -5 -5 -4 -3 -3 -2 -2 -------- Run | Yrd Mat Min Exi Min Mat Fac Low Low Dat Pro Fac Fac Ext Cet Arc Hub Fac Res Qua Res Tes Total Allies 44 | . . . . 3 . . . . . . . . 19 5 . . . . 1 16 . Largest Group 15 | . . . . 3 3 . . . . . . . 12 12 12 10 5 . 1 15 10 Highest-Rated Group 822 | . . . . 40 40 . . . . . . . 470 822 822 629 352 . 45 215 154 Highest-Rated Ally 159 | . . . . 16 16 . . . . . . . 159 159 159 96 96 . 45 26 26 Total Orders 7 | . . . . . . 2 2 . . . 1 . . . . 1 . . 1 . . FOLLOW 1 | . . . . . . . 1 . . . . . . . . . . . . . . EXPLORE 1 | . . . . . . 1 . . . . . . . . . . . . . . . RETURN 5 | . . . . . . 1 1 . . . 1 . . . . 1 . . 1 . . Ally Attacks 421 | . . . . 10 7 . . . . . . . 65 58 22 164 22 . . 43 30 Total Damage 9128 | . . . . 102 79 . . . . . . . 1118 1245 373 3474 1397 . . 881 459 Kills 68 | . . . . 4 . . . . . . . . 10 7 5 26 8 . . 6 2 Allies Corrupted 1 | . . . . . . . . . . . . . . . . . . . . 1 . Allies Melted . | . . . . . . . . . . . . . . . . . . . . . . Intel | -11 -10 -10 -10 -9 -8 -7 -7 -7 -7 -6 -6 -5 -5 -5 -5 -5 -4 -3 -3 -2 -2 ------- Run | Yrd Mat Min Exi Min Mat Fac Low Low Dat Pro Fac Fac Ext Cet Arc Hub Fac Res Qua Res Tes Active Infowar (turns) 7774 | . 938 87 426 285 139 190 . 58 392 453 478 797 1836 491 351 . . 134 247 342 130 Optics 5653 | . . . . . . . . 58 392 453 478 797 1836 491 351 . . 78 247 342 130 Terrain 206 | . . . . . 16 190 . . . . . . . . . . . . . . . Seismic 1875 | . 938 87 426 285 139 . . . . . . . . . . . . . . . . Cloaking 399 | . . . . . . . . . . . . . . . . . . . 159 240 . Jamming 105 | . . . . . . . . . . . . . . . . . . 56 49 . . ECM 304 | . . . . . . . . . . . . . . . . . . . 48 256 . Robot Analysis Total 151 | . . . . . . . . . 151 . . . . . . . . . . . . Derelict Logs Recovered 5 | . . 1 . 1 . . 2 . . 1 . . . . . . . . . . . Drone Launches 55 | . . . . . . 3 13 1 . 1 2 . . . . 30 . 2 3 . . Drone Recoveries 34 | . . . . . . 3 12 1 . . 2 1 . . . 14 . . 1 . . Exploration | -11 -10 -10 -10 -9 -8 -7 -7 -7 -7 -6 -6 -5 -5 -5 -5 -5 -4 -3 -3 -2 -2 ------------- Run | Yrd Mat Min Exi Min Mat Fac Low Low Dat Pro Fac Fac Ext Cet Arc Hub Fac Res Qua Res Tes Turns Passed 12340 | 143 938 88 426 285 1386 921 564 665 392 453 478 797 1836 659 529 367 408 286 247 342 130 Spaces Moved 7037 | 70 420 77 373 232 411 471 335 356 215 186 189 276 668 314 178 171 162 454 456 744 279 Core 24 | 21 2 . . . . . . . . . . . . . . . . . . . 1 Treads 4166 | 49 348 . . . 330 471 335 356 132 186 189 276 668 314 178 171 162 1 . . . Legs . | . . . . . . . . . . . . . . . . . . . . . . Wheels 833 | . 70 77 373 232 81 . . . . . . . . . . . . . . . . Hover . | . . . . . . . . . . . . . . . . . . . . . . Flight 2014 | . . . . . . . . . 83 . . . . . . . . 453 456 744 278 Fastest Speed 22 | 50 110 110 110 110 110 160 160 160 34 240 240 160 240 160 160 160 160 25 22 22 40 Average Speed 132 | 127 159 110 110 110 150 160 160 160 124 240 240 239 242 166 160 160 160 27 24 27 40 Slowest Speed 400 | 160 400 110 110 110 240 160 160 160 240 240 240 320 320 240 160 160 160 160 25 40 50 Overloaded Moves . | . . . . . . . . . . . . . . . . . . . . . . Propulsion Burnouts . | . . . . . . . . . . . . . . . . . . . . . . Robots Hopped 21 | . . . . . . . . . . . . . . . . . . 7 6 5 3 Potential Cave-ins 6 | . . . . . . . . . . . . . . . . . . . 6 . . Cave-ins Triggered 1 | . . . . . . . . . . . . . . . . . . . 1 . . Teleports 4 | . . . . . . . . . . . . . . . . . . . . . 4 Exploration Rate (%) 44 | 4 57 14 70 62 36 13 67 55 82 41 4 8 87 71 87 36 8 19 63 38 47 Regions Visited 21 Branch Regions 13 Pre-discovered Areas 32 | . . 1 1 1 2 . 1 . 26 . . . . . . . . . . . . Known Exits Taken 9 | . . . . . 1 1 1 . . 1 1 . . . . 1 . 1 1 1 . Unknown Exits Taken 12 | 1 1 1 1 1 . . . 1 1 . . 1 1 1 1 . 1 . . . . Scrap Searched 7 | . . 1 . 2 . . 2 1 . 1 . . . . . . . . . . . Spaces Dug 36 | . . . . . . 2 . . . . . 4 . . . . 6 5 13 5 1 Terrain Destroyed 768 | . . . . . 60 75 21 . . 2 . 5 6 1 26 2 74 5 16 474 1 Melee 24 | . . . . . . 2 . . . . . 4 . . . . . 5 7 5 1 Projectile 100 | . . . . . 19 . . . . 2 . 1 6 1 26 2 34 . 9 . . AOE 644 | . . . . . 41 73 21 . . . . . . . . . 40 . . 469 . Terrain Rammed . | . . . . . . . . . . . . . . . . . . . . . . Walls Destroyed . | . . . . . . . . . . . . . . . . . . . . . . Machines Disabled . | . . . . . . . . . . . . . . . . . . . . . . Actions | -11 -10 -10 -10 -9 -8 -7 -7 -7 -7 -6 -6 -5 -5 -5 -5 -5 -4 -3 -3 -2 -2 --------- Run | Yrd Mat Min Exi Min Mat Fac Low Low Dat Pro Fac Fac Ext Cet Arc Hub Fac Res Qua Res Tes Total 9483 | 101 562 79 394 263 1034 595 361 412 347 194 214 407 886 450 399 260 251 588 554 844 288 Wait 1519 | . 33 . . 30 496 44 22 11 67 7 23 105 158 91 172 86 49 55 18 52 . Move 6976 | 69 419 76 372 231 410 470 334 355 214 185 188 275 667 313 177 170 161 440 444 733 273 Hop 18 | . . . . . . . . . . . . . . . . . . 6 4 5 3 Pick Up 189 | 13 15 1 9 1 18 10 1 10 22 . 1 10 7 12 13 1 3 20 17 5 . Fast Attach 49 | . 1 . . . 3 8 . 1 5 . . . 10 2 2 . . 2 5 8 2 Attach 116 | 6 5 . 2 . 8 5 . 3 9 1 2 8 1 9 8 1 6 17 13 8 4 Detach 19 | . 1 . . . . 1 . 1 2 . . 1 . 2 . . . 6 5 . . Swap 45 | . 4 2 . . 5 6 1 3 4 . . 1 1 5 . . . 1 7 5 . Drop 177 | . 5 . 11 1 14 17 1 7 23 1 . 3 13 14 14 . . 24 17 10 2 Fire 252 | 13 79 . . . 80 20 2 . . . . . . 2 13 2 32 . 8 1 . Melee 93 | . . . . . . 14 . 21 1 . . 4 . . . . . 17 15 17 4 Ram . | . . . . . . . . . . . . . . . . . . . . . . Kick . | . . . . . . . . . . . . . . . . . . . . . . Crush . | . . . . . . . . . . . . . . . . . . . . . . Escape Stasis 9 | . . . . . . . . . . . . . 8 . . . . . 1 . . Rewire 21 | . . . . . . . . . . . . . 21 . . . . . . . . Trap . | . . . . . . . . . . . . . . . . . . . . . . Miscellaneous . | . . . . . . . . . . . . . . . . . . . . . . Route ------- -11/Scrapyard -10/Materials (discovered 3 exits: [*Mat x2] / *Min) -10/Mines -10/Exiles -9/Mines -8/Materials (discovered 2 exits: *Fac x2) -7/Factory (discovered 5 exits: Fac x4 / *Low) -7/Lower Caves -7/Lower Caves -7/Data Miner -6/Proximity Caves -6/Factory (discovered 6 exits: *Fac x4 / Low x2) -5/Factory -5/Extension (discovered 2 exits: *Fac / *Cet) -5/Cetus (discovered 2 exits: *Fac / *Arc) -5/Archives (discovered 3 exits: *Fac / *Hub x2) -5/Hub_04(d) (discovered 4 exits: *Fac x4) -4/Factory -3/Research (discovered 6 exits: *Res x3 / Arm / *Qua x2) -3/Quarantine -2/Research (discovered 2 exits: *Tes x2) -2/Testing (discovered 1 exit: [*Acc]) History --------- Turn | Location | Event 10 | -11/Scrapyard | Discovered new exit (range 14) 144 | -11/Scrapyard | Entered Materials 302 | -10/Materials | Build established: Mutant 441 | -10/Materials | Discovered new exit (range 5) 753 | -10/Materials | Discovered new exit (range 13) 756 | -10/Materials | Discovered new exit (range 16) 891 | -10/Materials | Core integrity fell below 50% 944 | -10/Materials | Derelicts attacked the area 1082 | -10/Materials | Entered Mines 1088 | -10/Mines | Found the Drone Emporium 1093 | -10/Mines | Found Prototype Device 1108 | -10/Mines | Identified Sensor Drone Bay 1112 | -10/Mines | Deemed a non-threat by the Exiles lab entrance 1112 | -10/Mines | Discovered new exit (range 5) 1170 | -10/Mines | Entered Exiles 1209 | -10/Exiles | Met 8R-AWN 1226 | -10/Exiles | Met EX-HEX 1293 | -10/Exiles | Met EX-DEC 1318 | -10/Exiles | Learned location of Zion (-6) 1412 | -10/Exiles | Met EX-BIN 1428 | -10/Exiles | Aligned with FarCom system 1429 | -10/Exiles | Given EX-Vault access code 1454 | -10/Exiles | Opened EX-Vault 1467 | -10/Exiles | Found Skeleton Box 1482 | -10/Exiles | Found Army-in-a-Box 1495 | -10/Exiles | Found AWS/Autocannon 1518 | -10/Exiles | Warned to stay clear of 0b10 Research branches 1586 | -10/Exiles | Discovered new exit (range 11) 1596 | -10/Exiles | Stole three prototypes: Skeleton Box, Army-in-a-Box, AWS/Autocannon 1596 | -10/Exiles | Entered Mines 1597 | -9/Mines | Learned location of Storage (-9) 1612 | -9/Mines | Received a Rocket Launcher from a helpful Derelict 1677 | -9/Mines | Learned Materials emergency access door positions 1696 | -9/Mines | Assisted by bots powering up and referring to "LRC-V3" 1841 | -9/Mines | Discovered new exit (range 15) 1881 | -9/Mines | Entered Materials 1881 | -8/Materials | Accompanied by 3 allies 1881 | -8/Materials | Evolved 4 slots: Propulsion x1, Utility x2, Weapon x1 2072 | -8/Materials | Garrison activated, responded to threat 2269 | -8/Materials | Garrison activated, responded to threat 2324 | -8/Materials | Destroyed 8 combat bots 2459 | -8/Materials | Discovered new exit (range 16) 2880 | -8/Materials | Learned 4 Lower Caves zone layouts 2998 | -8/Materials | Learned location of 1 exit from Recycling 3045 | -8/Materials | Learned Factory stockpile data 3080 | -8/Materials | Learned Factory trap positions 3106 | -8/Materials | Identified exit to Factory 3124 | -8/Materials | Learned location of 2 exits from Factory 3154 | -8/Materials | Learned location of 3 exits from Factory 3246 | -8/Materials | Learned location of 1 exit from Recycling 3267 | -8/Materials | Entered Factory 3267 | -7/Factory | Evolved 2 slots: Propulsion x1, Utility x1 3268 | -7/Factory | Identified exit to Factory 3268 | -7/Factory | Identified exit to Lower Caves 3269 | -7/Factory | Loaded intel: 89 trap records 3269 | -7/Factory | FarCom data flow suspended 3398 | -7/Factory | Fabricated Flak Gun? 3928 | -7/Factory | Garrison activated, responded to threat 4177 | -7/Factory | Build established: Gladiator 4188 | -7/Factory | Entered Lower Caves 4189 | -7/Lower Caves | Identified exit to Lower Caves 4384 | -7/Lower Caves | Learned location of Extension (-5) 4449 | -7/Lower Caves | Entered an active Warlord outpost 4744 | -7/Lower Caves | Learned Factory garrison access intel 4752 | -7/Lower Caves | Entered another Lower Caves area 4752 | -7/Lower Caves | Accompanied by 1 ally 4867 | -7/Lower Caves | Attracted the attention of an 0b10 checkpoint 5317 | -7/Lower Caves | Spotted 5J-BXL(f) 5318 | -7/Lower Caves | Encountered a Master Thief 5318 | -7/Lower Caves | Spotted S0-TNO(f) 5319 | -7/Lower Caves | Encountered a Master Thief 5319 | -7/Lower Caves | Spotted SK-RLL(f) 5319 | -7/Lower Caves | Force Booster stolen by Master Thief 5319 | -7/Lower Caves | Aerolev Unit stolen by Master Thief 5320 | -7/Lower Caves | Encountered a Master Thief 5323 | -7/Lower Caves | Destroyed 5J-BXL(f) 5332 | -7/Lower Caves | Destroyed SK-RLL(f) 5403 | -7/Lower Caves | Discovered new exit (range 6) 5417 | -7/Lower Caves | Entered Data Miner 5417 | -7/Data Miner | Discovered new exit (range 6) 5438 | -7/Data Miner | Met Data Miner 5475 | -7/Data Miner | Learned location of Section 7 (-2) 5475 | -7/Data Miner | Acquired the access code to Warlord's prototype stash 5504 | -7/Data Miner | Received God Mode back door access code from Data Miner 5584 | -7/Data Miner | Destroyed Data Miner 5587 | -7/Data Miner | Interfaced with the Data Conduit 5672 | -7/Data Miner | Found Prototype Hackware 5675 | -7/Data Miner | Found Prototype Hackware 5718 | -7/Data Miner | Found Exp. Thermal Shield 5720 | -7/Data Miner | Found Exp. Thermal Shield 5809 | -7/Data Miner | Entered Proximity Caves 5815 | -6/Proximity Caves | Spotter reported a threat 5818 | -6/Proximity Caves | Spotter reported a threat 6054 | -6/Proximity Caves | Build established: Gunner 6262 | -6/Proximity Caves | Entered Factory 6262 | -6/Factory | Accompanied by 1 ally 6262 | -6/Factory | Evolved 2 slots: Utility x2 6263 | -6/Factory | Loaded intel: 237 machine locations 6264 | -6/Factory | Loaded intel: 4 garrison access locations 6301 | -6/Factory | Identified Quantum Router 6302 | -6/Factory | Identified System Mapper 6356 | -6/Factory | Fabricated Adv. Hacking Suite (x1) 6375 | -6/Factory | Discovered new exit (range 7) 6375 | -6/Factory | Identified exit to Lower Caves 6375 | -6/Factory | Identified exit to Factory 6608 | -6/Factory | Build established: Hacker-Gunner 6740 | -6/Factory | Entered another Factory area 6740 | -5/Factory | Accompanied by 1 ally 6740 | -5/Factory | Evolved 2 slots: Utility x2 6741 | -5/Factory | Loaded intel: 301 machine locations 7050 | -5/Factory | Build established: Hacker-Tank 7519 | -5/Factory | Discovered new exit (range 9) 7537 | -5/Factory | Entered Extension 7538 | -5/Extension | Loaded intel: 30 machine locations 7649 | -5/Extension | Rescued a captive Derelict 8586 | -5/Extension | Spotted B-75 Beast 8599 | -5/Extension | Destroyed B-75 Beast 8620 | -5/Extension | Spotted B-75 Beast 8642 | -5/Extension | Destroyed B-75 Beast 8684 | -5/Extension | Lost 6 allies 8805 | -5/Extension | Destroyed 8 combat bots 8813 | -5/Extension | Rescued a captive Derelict 8814 | -5/Extension | Rescued a captive Derelict 8844 | -5/Extension | Rescued a captive Derelict 8846 | -5/Extension | Rescued a captive Derelict 8899 | -5/Extension | Rescued a captive Derelict 8900 | -5/Extension | Rescued a captive Derelict 8916 | -5/Extension | Rescued A7 9072 | -5/Extension | Build established: Scavenger-Tank 9089 | -5/Extension | Rescued a captive Derelict 9098 | -5/Extension | Rescued a captive Derelict 9142 | -5/Extension | Rescued a captive Derelict 9143 | -5/Extension | Rescued a captive Derelict 9298 | -5/Extension | Discovered new exit (range 10) 9301 | -5/Extension | Discovered new exit (range 6) 9373 | -5/Extension | Entered Cetus 9373 | -5/Cetus | Accompanied by 10 allies (A7) 9374 | -5/Cetus | Loaded intel: 24 machine locations 9378 | -5/Cetus | Acquired a Cetus Manufacturing Module code from A7 9405 | -5/Cetus | Spotted Cetus Guard 9405 | -5/Cetus | Spotted Cetus Guard 9406 | -5/Cetus | Spotted Cetus Guard 9408 | -5/Cetus | Spotted Cetus Guard 9411 | -5/Cetus | Allies destroyed Cetus Guard 9414 | -5/Cetus | Destroyed Cetus Guard 9415 | -5/Cetus | Destroyed Cetus Guard 9424 | -5/Cetus | Allies destroyed Cetus Guard 9453 | -5/Cetus | Lost 3 allies 9505 | -5/Cetus | Started Cetus Manufacturing Module 9530 | -5/Cetus | Manufactured an Enhanced Grunt 9530 | -5/Cetus | Escorted A7 to Cetus Mainframe 9547 | -5/Cetus | Discovered new exit (range 15) 9555 | -5/Cetus | Manufactured an Enhanced Grunt 9580 | -5/Cetus | Manufactured an Enhanced Grunt 9590 | -5/Cetus | Spotted Cetus Guard 9590 | -5/Cetus | Spotted Cetus Guard 9590 | -5/Cetus | Allies destroyed Cetus Guard 9592 | -5/Cetus | Spotted Cetus Guard 9592 | -5/Cetus | Spotted Cetus Guard 9596 | -5/Cetus | Allies destroyed Cetus Guard 9603 | -5/Cetus | Allies destroyed Cetus Guard 9605 | -5/Cetus | Manufactured an Enhanced Grunt 9606 | -5/Cetus | Destroyed Cetus Guard 9607 | -5/Cetus | Discovered new exit (range 16) 9615 | -5/Cetus | Met Revision 17 9630 | -5/Cetus | Manufactured an Enhanced Grunt 9929 | -5/Cetus | System corruption reached 10% 9938 | -5/Cetus | System corruption reached 30% 10032 | -5/Cetus | Entered Archives 10032 | -5/Archives | Accompanied by 12 allies (A7) 10033 | -5/Archives | Loaded intel: 8 machine locations 10037 | -5/Archives | Received a hacking code to weaken MAIN.C 10071 | -5/Archives | Discovered new exit (range 19) 10076 | -5/Archives | Discovered new exit (range 17) 10110 | -5/Archives | Discovered new exit (range 21) 10478 | -5/Archives | Unable to access archive contents 10561 | -5/Archives | Entered Hub_04(d) 10561 | -5/Hub_04(d) | Accompanied by 10 allies 10562 | -5/Hub_04(d) | Loaded intel: 93 machine locations 10595 | -5/Hub_04(d) | Garrison activated, responded to threat 10606 | -5/Hub_04(d) | Identified exit to Factory 10617 | -5/Hub_04(d) | Spotted B-75 Beast 10645 | -5/Hub_04(d) | Allies destroyed B-75 Beast 10674 | -5/Hub_04(d) | Lost 3 allies 10861 | -5/Hub_04(d) | First assault squad dispatched 10881 | -5/Hub_04(d) | Network Hub disabled 10881 | -5/Hub_04(d) | Network Hub disabled 10912 | -5/Hub_04(d) | Lost 13 allies 10928 | -5/Hub_04(d) | Entered Factory 10928 | -4/Factory | Accompanied by 5 allies 10928 | -4/Factory | Evolved 2 slots: Propulsion x2 10929 | -4/Factory | Loaded intel: 279 machine locations 11154 | -4/Factory | Lost 3 allies 11178 | -4/Factory | First assault squad dispatched 11272 | -4/Factory | Spotted B-86 Titan 11299 | -4/Factory | Discovered new exit (range 13) 11336 | -4/Factory | Entered Research 11336 | -3/Research | Evolved 2 slots: Power x1, Propulsion x1 11337 | -3/Research | Loaded intel: 101 machine locations 11379 | -3/Research | Identified exit to Armory 11379 | -3/Research | Identified exit to Quarantine 11379 | -3/Research | Identified exit to Research 11536 | -3/Research | Revision forces began assault on 0b10 11544 | -3/Research | Found Spectral Analyzer 11622 | -3/Research | Entered Quarantine 11623 | -3/Quarantine | Loaded intel: 81 machine locations 11701 | -3/Quarantine | Crushed by falling debris 11735 | -3/Quarantine | Found Alien Artifact 11741 | -3/Quarantine | Found Alien Artifact 11742 | -3/Quarantine | Found Alien Artifact 11743 | -3/Quarantine | Found Alien Artifact 11750 | -3/Quarantine | Found Alien Artifact 11777 | -3/Quarantine | Found Alien Artifact 11777 | -3/Quarantine | Identified Core Reset Matrix 11777 | -3/Quarantine | Identified Hpw. Transdimensional Reconstructor (x3) 11777 | -3/Quarantine | Identified Transdimensional Reconstructor 11777 | -3/Quarantine | Identified Dimensional Node Initializer 11777 | -3/Quarantine | Used Core Reset Matrix 11781 | -3/Quarantine | Detected hypermatrix surge 11781 | -3/Quarantine | Sensed 7 artifacts in vicinity 11789 | -3/Quarantine | Discovered exit to Research (range 21) 11799 | -3/Quarantine | Found Core Stripper 11844 | -3/Quarantine | Spotted Alpha 7 11850 | -3/Quarantine | Found Sigix Terminator 11869 | -3/Quarantine | Entered Research 11869 | -2/Research | Evolved 2 slots: Propulsion x1, Utility x1 11928 | -2/Research | Build established: Hacker-Sprinter 11961 | -2/Research | Spotted B-90 Cyclops 12054 | -2/Research | Spotted B-90 Cyclops 12114 | -2/Research | Fired Sigix Terminator 12115 | -2/Research | Emitted hypermatrix ping 12115 | -2/Research | Core integrity fell below 50% 12120 | -2/Research | Assembled emerged from beneath the floor 12123 | -2/Research | Assembled emerged from beneath the floor 12135 | -2/Research | Destroyed 15 combat bots 12145 | -2/Research | Lost 14 parts (2p6n5u1w) 12165 | -2/Research | Spotted B-90 Cyclops 12168 | -2/Research | Identified exit to Testing 12211 | -2/Research | Entered Testing 12211 | -2/Testing | Accompanied by 10 allies 12230 | -2/Testing | Spotted PL-R8WOXN9NSD 12234 | -2/Testing | Protovariant out of control (PL-R8WOXN9NSD) 12234 | -2/Testing | Unleashed a protovariant (PL-R8WOXN9NSD) 12248 | -2/Testing | Found Prototype Energy Cannon 12248 | -2/Testing | Identified Null Cannon 12282 | -2/Testing | Lost 6 allies 12288 | -2/Testing | Core integrity fell below 20% 12304 | -2/Testing | Spotted Fortress 12304 | -2/Testing | Warped through subspace 12310 | -2/Testing | Warped through subspace 12311 | -2/Testing | Warped through subspace 12312 | -2/Testing | Warped through subspace 12338 | -2/Testing | Lost 4 parts (4u) 12339 | -2/Testing | Discovered new exit (range 23) 12341 | -2/Testing | Destroyed by G-73 Enforcer with Heavy Laser Last Messages --------------- >>Layout(Zone) Retrieving Zone 8Q layout... Downloaded map data. 12300_ System corrupted: Component data lost. 12304_ Warped through subspace. 12307_ Penetrated by Slug. 12307_ Adv. Signal Interpreter destroyed. 12310_ Warped through subspace. 12316_ Connecting with Terminal... 12319_ Sneak attack on A-15 Conveyor. 12319_ A-15 Conveyor Unknown Treads severed. 12319_ A-15 Conveyor calls for reinforcements. 12319_ ALERT: Hostile activity reported, dispatching reinforcements to area. 12325_ Connecting with Terminal... 12331_ ALERT: Potential suspicious activity detected, Programmers report to Testing Zone 7O. 12332_ System corrupted: Matter fused (-6). 12339_ EXIT=FOUND 12340_ Biomechanical Wings destroyed. Map ----- +----------------------------------------------------+ | ???????????????????# ????????????????????# # | | ??????????????????? ????????????????????# # | | ??????????????????? #????????????######## # | | ??????????????????? #####????????# ! | | ??????????????????? *% | | ???????????????????# ####### | | ???????????????????# ]] #?????# | | ???????????????????# ]] ""????#########/### | | ???????????????????# ]] ""#?????????? | | ???????????????????+ ""#????????""" """" | | ???????????????????# T#?????? """" """" | | ???????????????????# """ """ ""#????? """" """" | | ???????????????????# """ """ ""#???? """" """" | | ???????????????????# """ """ ""????? | | ???????????????????# #??????#?########## | | ?????????????####### """ """ #????????????????## | | ????????????? = !# """ """ #????????????????## | | ?????????????? # """ """ #????????????????## | | ??????????????"" !!# #????????????????## | | ???????????????" !?# """p""" #????????????????## | | ???????????????" ?# """ """ #??????????????# " | | ################+### """ """ ######+#####+###### | | u k p #???# | | !** #???# | | k !** #???# | | @** gg gp #???? | | #########/###########+###############+### < #???? | | ??????# #??????????????????????????????????? | | ??????# """ #??????????????????????????????????? | | ??????# "T" #??????????????????????????????????? | | ??????#/ #??????????????????????????????????? | | ??????# = #??????????????????????????????????? | | ??????# #??????????????????????????????????? | | ###???# """ !#??????????????????????????????????? | | #???# """ #??????????????????????????????????? | | " ##### """ #??????????????????????????????????? | | " /= #??????????????????????????????????? | | ##### #??????????????????????????????????? | | ###############??????????????????????????????????? | | #??????????????????????????????????????????? | | ! #??????????????????????????????????????????? | | #??????????????????????????????????????????? | | #??????????????????????????????????????????? | | " #??????????????????????????????????????????? | | " #??????????????????????????????????????????? | | #??????????????????????????????????????????? | | #######??????????????????????????????????????????? | | | | | | | +----------------------------------------------------+ Best States ------------- Heat Dissipation 65 Energy Generation 37 Energy Capacity 325 Matter Stores 300 Matter Capacity 450 Sight Range 24 Terrain Scan Range 16 Terrain Scan Density 10 ECM Strength 1 Jamming Range 16 Cloak Strength 2 Armor Coverage 675 Resistance: KI 30 Resistance: TH 30 Core Shielding 20 Phase Shifting 10 Evasion (%) 85 Melee Accuracy 6 Core Analysis 9 Recoil Reduction 4 Kinecelleration 40 Force Boost 20 Offensive Hacking 106 Defensive Hacking 25 Item Schematics ----------------- None Robot Schematics ------------------ None Fabricated ------------ Flak Gun | x2 | -7/Factory | Preloaded Adv. Hacking Suite | x1 | -6/Factory | Preloaded Repaired ---------- Nothing Alien Tech Used ----------------- Core Reset Matrix Core Stripper Sigix Terminator Transdimensional Reconstructor High-powered Transdimensional Reconstructor Achievements -------------- l33t h4x0r Challenges ------------ None Game ------ Seed VortexDisruptionLog Manual? 0 Play Time 02:28:49 Cumulative 311.2 hours Start 2025.09.20 @ 02:52:26 End 2025.09.20 @ 05:34:34 Sessions 1 Manual Loads 0 Difficulty Rogue Special Mode None Game No. 428 Rogue 428 Adventurer 0 Explorer 0 Win Type - Total 10 Types 5/0/1/2/1/0/1/0/0/0 Lore% 86 Gallery% 82 Achievement% 67 Wizard Run 0 Options --------- Layout 0 ASCII 0 Keyboard 0 Movement Mouse Keybinds 0 Fullscreen 1 Font 24/Tamsyn Map View 76x50 Zoom Use 0% Tactical HUD 1 Map Filters NONE Filters NONE Steam 1 RUN: 144ee377-7ea5-4220-a521-073388faf676